fUSD/lending_fUSD_20240428
["ID","MTS","AMOUNT","RATE_DAILY","PERIOD"]
[17810,1714329086596,-500.0,0.0001178,2]
[17811,1714329086606,-867.7,0.0001178,2]
[17812,1714329086615,-500.0,0.0001178,2]
[17813,1714329086624,-500.0,0.0001178,2]
[17815,1714329086643,-500.0,0.0001178,2]
[17816,1714329086652,-500.0,0.0001178,2]
[17817,1714329086661,-500.0,0.0001178,2]
[17819,1714329086683,-500.0,0.0001178,2]
[17820,1714329086692,-500.0,0.0001178,2]
[17821,1714329086701,-460.57619288,0.0001178,2]
[17822,1714329086712,-508.53,0.0001178,2]
[17823,1714329086721,-500.0,0.0001178,2]
[17825,1714329086739,-500.0,0.0001178,2]
[17826,1714329086748,-605.8,0.0001178,2]
[17827,1714329086758,-500.0,0.0001178,2]
[17829,1714329086776,-500.0,0.0001178,2]
[17831,1714329086794,-500.0,0.0001178,2]
[17833,1714329086812,-500.0,0.0001178,2]
[17835,1714329086832,-500.0,0.0001178,2]
[17837,1714329086853,-500.0,0.0001178,2]
[17839,1714329086872,-1894.72,0.0001178,2]
[17841,1714329086891,-500.0,0.0001178,2]
[17843,1714329086910,-930.04,0.0001178,2]
[17845,1714329086928,-500.0,0.0001178,2]
[17847,1714329086947,-500.0,0.0001178,2]
[17849,1714329086965,-1200.14,0.0001178,2]
[17851,1714329086984,-500.0,0.0001178,2]
[17852,1714329086993,-551.5,0.0001178,2]
[17853,1714329087003,-500.0,0.0001178,2]
[17854,1714329087012,-500.0,0.0001178,2]
[17855,1714329087021,-500.0,0.0001178,2]
[17856,1714329087031,-568.27,0.0001178,2]
[17857,1714329087040,-500.0,0.0001178,2]
[17858,1714329087049,-500.0,0.0001178,2]
[17859,1714329087058,-1415.69,0.0001178,2]
[17860,1714329087067,-500.0,0.0001178,2]
[17861,1714329087076,-500.0,0.0001178,2]
[17862,1714329087085,-661.37,0.0001178,2]
[17863,1714329087095,-500.0,0.0001178,2]
[17864,1714329087104,-1488.72,0.0001178,2]
[17865,1714329087113,-500.0,0.0001178,2]
[17866,1714329087123,-836.74,0.0001178,2]
[17867,1714329087132,-500.0,0.0001178,2]
[17868,1714329087141,-500.0,0.0001178,2]
[17869,1714329087150,-1120.64,0.0001178,2]
[17870,1714329087159,-669.02,0.0001178,2]
[17871,1714329087168,-500.0,0.0001178,2]
[17873,1714329087186,-500.0,0.0001178,2]
[17875,1714329087204,-500.0,0.0001178,2]
[17877,1714329087222,-500.0,0.0001178,2]
[17878,1714329087231,-1298.79,0.0001178,2]
[17879,1714329087240,-777.85,0.0001178,2]
[17880,1714329087249,-1163.95,0.0001178,2]
[17881,1714329087258,-500.0,0.0001178,2]
[17882,1714329087267,-1171.06,0.0001178,2]
[17883,1714329087276,-500.0,0.0001178,2]
[17885,1714329087294,-500.0,0.0001178,2]
[17887,1714329087312,-782.58,0.0001178,2]
[17889,1714329087330,-500.0,0.0001178,2]
[17891,1714329087347,-741.3,0.0001178,2]
[17893,1714329087366,-1031.54,0.0001178,2]
[17895,1714329087383,-523.34,0.0001178,2]
[17897,1714329087401,-559.63,0.0001178,2]
[17899,1714329087420,-500.0,0.0001178,2]
[17901,1714329087438,-500.0,0.0001178,2]
[17903,1714329087456,-823.69,0.0001178,2]
[17905,1714329087475,-500.0,0.0001178,2]
[17907,1714329087493,-500.0,0.0001178,2]
[17909,1714329087511,-937.48,0.0001178,2]
[17911,1714329087528,-500.0,0.0001178,2]
[17913,1714329087546,-623.62,0.0001178,2]
[17915,1714329087564,-500.0,0.0001178,2]
[17917,1714329087583,-500.0,0.0001178,2]
[17919,1714329087602,-500.0,0.0001178,2]
[17921,1714329087621,-500.0,0.0001178,2]
[17923,1714329087641,-500.0,0.0001178,2]
[17925,1714329087660,-681.62,0.0001178,2]
[17927,1714329087682,-500.0,0.0001178,2]
[17929,1714329087701,-500.0,0.0001178,2]
[17931,1714329087722,-500.0,0.0001178,2]
[17933,1714329087740,-500.0,0.0001178,2]
[17935,1714329087762,-500.0,0.0001178,2]
[17937,1714329087780,-724.03,0.0001178,2]
[17939,1714329087799,-500.0,0.0001178,2]
[17941,1714329087818,-842.42,0.0001178,2]
[17943,1714329087837,-887.92,0.0001178,2]
[17945,1714329087855,-9567.9,0.0001178,2]
[17947,1714329087874,-500.0,0.0001178,2]
[17949,1714329087893,-500.0,0.0001178,2]
[17951,1714329087912,-1067.66,0.0001178,2]
[17953,1714329087931,-500.0,0.0001178,2]
[17955,1714329087951,-869.17,0.0001178,2]
[17957,1714329087970,-829.31,0.0001178,2]
[17959,1714329087991,-500.0,0.0001178,2]
[17961,1714329088010,-500.0,0.0001178,2]
[17963,1714329088029,-500.0,0.0001178,2]
[17965,1714329088048,-500.0,0.0001178,2]
[17967,1714329088068,-558.66,0.0001178,2]
[17969,1714329088091,-500.0,0.0001178,2]
[17971,1714329088112,-500.0,0.0001178,2]
[17972,1714329088123,-500.0,0.0001178,2]
[17973,1714329088134,-500.0,0.0001178,2]
[17974,1714329088145,-1059.92,0.0001178,2]
[17975,1714329088156,-500.0,0.0001178,2]
[17976,1714329088166,-500.0,0.0001178,2]
[17977,1714329088175,-769.55,0.0001178,2]
[17978,1714329088186,-2548.79,0.0001178,2]
[17979,1714329088195,-500.0,0.0001178,2]
[17980,1714329088204,-500.0,0.0001178,2]
[17981,1714329088214,-500.0,0.0001178,2]
[17982,1714329088225,-545.7,0.0001178,2]
[17983,1714329088235,-500.0,0.0001178,2]
[17984,1714329088244,-500.0,0.0001178,2]
[17985,1714329088253,-908.47,0.0001178,2]
[17986,1714329088263,-2129.61,0.0001178,2]
[17987,1714329088273,-1056.93,0.0001178,2]
[17988,1714329088282,-500.0,0.0001178,2]
[17989,1714329088291,-2366.39,0.0001178,2]
[17990,1714329088301,-500.0,0.0001178,2]
[17991,1714329088310,-720.54,0.0001178,2]
[17992,1714329088320,-500.0,0.0001178,2]
[17993,1714329088329,-500.0,0.0001178,2]
[17995,1714329088354,-500.0,0.0001178,2]
[17996,1714329088364,-500.0,0.0001178,2]
[17997,1714329088373,-1191.82,0.0001178,2]
[17998,1714329088383,-500.0,0.0001178,2]
[17999,1714329088392,-613.02,0.0001178,2]
[18000,1714329088402,-500.0,0.0001178,2]
[18001,1714329088412,-500.0,0.0001178,2]
[18002,1714329088421,-793.83,0.0001178,2]
[18003,1714329088431,-3214.28,0.0001178,2]
[18004,1714329088440,-507.97141706,0.0001178,2]
[18005,1714329088450,-774.89,0.0001178,2]
[18006,1714329088459,-1032.47,0.0001178,2]
[18007,1714329088469,-533.47,0.0001178,2]
[18008,1714329088478,-804.06,0.0001178,2]
[18009,1714329088487,-628.51,0.0001178,2]
[18010,1714329088497,-500.0,0.0001178,2]
[18011,1714329088506,-484.75,0.0001178,2]
[18012,1714329088515,-500.0,0.0001178,2]
[18013,1714329088525,-676.7,0.0001178,2]
[18014,1714329088534,-500.0,0.0001178,2]
[18015,1714329088544,-500.0,0.0001178,2]
[18016,1714329088553,-500.0,0.0001178,2]
[18017,1714329088563,-500.0,0.0001178,2]
[18019,1714329088581,-500.0,0.0001178,2]
[18021,1714329088601,-952.74,0.0001178,2]
[18022,1714329088611,-1650.98,0.0001178,2]
[18023,1714329088620,-2989.37,0.0001178,2]
[18025,1714329088638,-500.0,0.0001178,2]
[18026,1714329088648,-500.0,0.0001178,2]
[18027,1714329088658,-849.7,0.0001178,2]
[18028,1714329088668,-500.0,0.0001178,2]
[18029,1714329088684,-500.0,0.0001178,2]
[18030,1714329088694,-554.98,0.0001178,2]
[18031,1714329088704,-500.0,0.0001178,2]
[18032,1714329088714,-500.0,0.0001178,2]
[18033,1714329088727,-690.12,0.0001178,2]
[18034,1714329088736,-500.0,0.0001178,2]
[18035,1714329088748,-932.3,0.0001178,2]
[18036,1714329088758,-500.0,0.0001178,2]
[18037,1714329088769,-1291.62,0.0001178,2]
[18038,1714329088779,-656.85,0.0001178,2]
[18039,1714329088788,-1325.99,0.0001178,2]
[18040,1714329088798,-500.0,0.0001178,2]
[18041,1714329088809,-500.0,0.0001178,2]
[18042,1714329088821,-500.0,0.0001178,2]
[18043,1714329088831,-1165.14,0.0001178,2]
[18044,1714329088842,-4948.32,0.0001178,2]
[18045,1714329088853,-500.0,0.0001178,2]
[18046,1714329088864,-1935.97,0.0001178,2]
[18047,1714329088875,-500.0,0.0001178,2]
[18049,1714329088897,-526.88,0.0001178,2]
[18051,1714329088918,-500.0,0.0001178,2]
[18053,1714329088937,-2097.93,0.0001178,2]
[18054,1714329088946,-28845.76,0.0001178,2]
[18055,1714329088956,-930.38,0.0001178,2]
[18056,1714329088965,-2847.3,0.0001178,2]
[18057,1714329088975,-500.0,0.0001178,2]
[18058,1714329088984,-500.0,0.0001178,2]
[18059,1714329088993,-2955.84,0.0001178,2]
[18060,1714329089006,-608.95,0.0001178,2]
[18061,1714329089015,-305.13165104,0.0001178,2]
[18062,1714329089025,-500.0,0.0001178,2]
[18063,1714329089034,-14552.13,0.0001178,2]
[18065,1714329089054,-2200.29,0.0001178,2]
[18066,1714329089063,-1126.74,0.0001178,2]
[18067,1714329089073,-318.321282,0.0001178,2]
[18069,1714329089093,-500.0,0.0001178,2]
[18071,1714329089113,-500.0,0.0001178,2]
[18073,1714329089132,-1952.42,0.0001178,2]
[18075,1714329089154,-500.0,0.0001178,2]
[18077,1714329089174,-500.0,0.0001178,2]
[18079,1714329089193,-1557.43,0.0001178,2]
[18081,1714329089213,-954.97,0.0001178,2]
[18083,1714329089235,-732.8,0.0001178,2]
[18084,1714329089244,-8208.53,0.0001178,2]
[18085,1714329089254,-536.39,0.0001178,2]
[18087,1714329089278,-500.0,0.0001178,2]
[18089,1714329089297,-500.0,0.0001178,2]
[18090,1714329089308,-500.0,0.0001178,2]
[18091,1714329089318,-1055.94,0.0001178,2]
[18092,1714329089328,-1696.02,0.0001178,2]
[18093,1714329089338,-8634.93,0.0001178,2]
[18094,1714329089348,-549.47,0.0001178,2]
[18095,1714329089358,-500.0,0.0001178,2]
[18096,1714329089368,-905.2,0.0001178,2]
[18097,1714329089377,-4114.94,0.0001178,2]
[18098,1714329089387,-500.0,0.0001178,2]
[18099,1714329089396,-500.0,0.0001178,2]
[18100,1714329089406,-1028.65,0.0001178,2]
[18101,1714329089418,-951.17,0.0001178,2]
[18103,1714329089437,-500.0,0.0001178,2]
[18105,1714329089457,-1490.71,0.0001178,2]
[18106,1714329089467,-3429.26,0.0001178,2]
[18107,1714329089476,-500.0,0.0001178,2]
[18109,1714329089495,-767.86,0.0001178,2]
[18110,1714329089505,-265.56678785,0.0001178,2]
[18111,1714329089514,-3161.91,0.0001178,2]
[18112,1714329089523,-500.0,0.0001178,2]
[18113,1714329089533,-500.0,0.0001178,2]
[18115,1714329089552,-15996.67,0.0001178,2]
[18116,1714329089561,-973.2,0.0001178,2]
[18117,1714329089571,-19514.18,0.0001178,2]
[18119,1714329089590,-769.1,0.0001178,2]
[18121,1714329089609,-500.0,0.0001178,2]
[18122,1714329089619,-1682.07,0.0001178,2]
[18123,1714329089628,-394.7832241,0.0001178,2]
[18125,1714329089647,-1366.6,0.0001178,2]
[18126,1714329089657,-1270.09,0.0001178,2]
[18127,1714329089667,-3202.06,0.0001178,2]
[18128,1714329089679,-3871.91,0.0001178,2]
[18129,1714329089689,-738.19,0.0001178,2]
[18130,1714329089699,-500.0,0.0001178,2]
[18131,1714329089708,-1052.48,0.0001178,2]
[18132,1714329089718,-859.1,0.0001178,2]
[18133,1714329089728,-500.0,0.0001178,2]
[18134,1714329089737,-1538.2,0.0001178,2]
[18135,1714329089748,-1607.959395,0.0001178,2]
[18136,1714329089758,-500.0,0.0001178,2]
[18137,1714329089767,-726.63,0.0001178,2]
[18138,1714329089776,-1638.81,0.0001178,2]
[18139,1714329089786,-500.0,0.0001178,2]
[18141,1714329089805,-1607.959395,0.0001178,2]
[18142,1714329089815,-500.0,0.0001178,2]
[18143,1714329089824,-1530.5,0.0001178,2]
[18144,1714329089834,-500.0,0.0001178,2]
[18145,1714329089844,-1297.13,0.0001178,2]
[18146,1714329089854,-1018.03,0.0001178,2]
[18147,1714329089864,-6205.7,0.0001178,2]
[18148,1714329089875,-1613.15,0.0001178,2]
[18149,1714329089887,-500.0,0.0001178,2]
[18151,1714329090269,-10958.77,0.0001178,2]
[18152,1714329090285,-501.88695249,0.0001178,2]
[18153,1714329090295,-1395.16,0.0001178,2]
[18154,1714329090304,-1018.3,0.0001178,2]
[18155,1714329090314,-500.0,0.0001178,2]
[18156,1714329090324,-1585.31,0.0001178,2]
[18157,1714329090333,-500.0,0.0001178,2]
[18158,1714329090342,-633.01,0.0001178,2]
[18159,1714329090352,-500.0,0.0001178,2]
[18160,1714329090361,-42065.6,0.0001178,2]
[18161,1714329090371,-535.01,0.0001178,2]
[18162,1714329090380,-500.0,0.0001178,2]
[18163,1714329090390,-1402.03,0.0001178,2]
[18165,1714329090408,-500.0,0.0001178,2]
[18167,1714329090427,-500.0,0.0001178,2]
[18168,1714329090437,-2602.9,0.0001178,2]
[18169,1714329090447,-500.0,0.0001178,2]
[18170,1714329090456,-500.0,0.0001178,2]
[18171,1714329090465,-503.45607492,0.0001178,2]
[18172,1714329090475,-769.08,0.0001178,2]
[18173,1714329090484,-1669.71,0.0001178,2]
[18174,1714329090493,-1691.23,0.0001178,2]
[18175,1714329090503,-2082.9,0.0001178,2]
[18176,1714329090512,-4569.34,0.0001178,2]
[18177,1714329090522,-786.39,0.0001178,2]
[18178,1714329090531,-500.0,0.0001178,2]
[18179,1714329090540,-978.2,0.0001178,2]
[18181,1714329090560,-500.0,0.0001178,2]
[18183,1714329090579,-500.0,0.0001178,2]
[18185,1714329090598,-1242.44,0.0001178,2]
[18186,1714329090607,-1489.55,0.0001178,2]
[18187,1714329090617,-503.59785275,0.0001178,2]
[18188,1714329090626,-598.29,0.0001178,2]
[18189,1714329090636,-1816.26,0.0001178,2]
[18190,1714329090646,-853.69,0.0001178,2]
[18191,1714329090656,-500.0,0.0001178,2]
[18192,1714329090666,-509.23794164,0.0001178,2]
[18193,1714329090680,-744.76,0.0001178,2]
[18194,1714329090690,-504.21322537,0.0001178,2]
[18195,1714329090699,-2315.27,0.0001178,2]
[18196,1714329090708,-1396.47,0.0001178,2]
[18197,1714329090718,-500.0,0.0001178,2]
[18198,1714329090728,-173.51524476,0.0001178,2]
[18199,1714329090741,-500.0,0.0001178,2]
[18200,1714329090752,-5437.95,0.0001178,2]
[18201,1714329090762,-1654.84,0.0001178,2]
[18202,1714329090771,-1002.92,0.0001178,2]
[18203,1714329090781,-557.45,0.0001178,2]
[18205,1714329090800,-500.0,0.0001178,2]
[18206,1714329090809,-937.09,0.0001178,2]
[18207,1714329090818,-500.0,0.0001178,2]
[18208,1714329090828,-1605.35,0.0001178,2]
[18209,1714329090837,-500.0,0.0001178,2]
[18211,1714329090856,-9867.65,0.0001178,2]
[18213,1714329090874,-946.14,0.0001178,2]
[18214,1714329090883,-529.05,0.0001178,2]
[18215,1714329090893,-2313.26,0.0001178,2]
[18216,1714329090902,-500.0,0.0001178,2]
[18217,1714329090911,-2307.17,0.0001178,2]
[18218,1714329090921,-752.06,0.0001178,2]
[18219,1714329090930,-5622.39,0.0001178,2]
[18221,1714329090948,-993.02,0.0001178,2]
[18222,1714329090958,-854.43,0.0001178,2]
[18223,1714329090967,-962.05,0.0001178,2]
[18224,1714329090980,-500.0,0.0001178,2]
[18225,1714329090991,-1819.29,0.0001178,2]
[18226,1714329091001,-500.0,0.0001178,2]
[18227,1714329091010,-2010.03,0.0001178,2]
[18228,1714329091021,-500.0,0.0001178,2]
[18229,1714329091031,-500.0,0.0001178,2]
[18230,1714329091041,-1034.68,0.0001178,2]
[18231,1714329091050,-883.46,0.0001178,2]
[18232,1714329091060,-500.0,0.0001178,2]
[18233,1714329091070,-3134.07,0.0001178,2]
[18234,1714329091079,-930.49,0.0001178,2]
[18235,1714329091088,-500.0,0.0001178,2]
[18236,1714329091098,-660.98,0.0001178,2]
[18237,1714329091107,-500.0,0.0001178,2]
[18238,1714329091116,-1380.46,0.0001178,2]
[18239,1714329091125,-3231.29,0.0001178,2]
[18241,1714329091144,-500.0,0.0001178,2]
[18243,1714329091162,-4596.92,0.0001178,2]
[18245,1714329091181,-633.32,0.0001178,2]
[18247,1714329091199,-900.78,0.0001178,2]
[18249,1714329091218,-1510.06,0.0001178,2]
[18251,1714329091236,-2166.18,0.0001178,2]
[18253,1714329091254,-1985.87,0.0001178,2]
[18255,1714329091273,-1021.32,0.0001178,2]
[18257,1714329091292,-544.19,0.0001178,2]
[18259,1714329091310,-632.97879404,0.0001178,2]
[18261,1714329091329,-1290.26,0.0001178,2]
[18263,1714329091347,-2248.37,0.0001178,2]
[18265,1714329091368,-554.01,0.0001178,2]
[18267,1714329091387,-3322.95,0.0001178,2]
[18268,1714329091397,-500.0,0.0001178,2]
[18269,1714329091407,-500.0,0.0001178,2]
[18270,1714329091417,-961.79,0.0001178,2]
[18271,1714329091426,-500.0,0.0001178,2]
[18272,1714329091436,-1867.81,0.0001178,2]
[18273,1714329091445,-500.0,0.0001178,2]
[18274,1714329091455,-12060.68,0.0001178,2]
[18275,1714329091465,-2488.18,0.0001178,2]
[18277,1714329091484,-500.0,0.0001178,2]
[18278,1714329091494,-1331.85,0.0001178,2]
[18279,1714329091503,-500.0,0.0001178,2]
[18280,1714329091513,-500.0,0.0001178,2]
[18281,1714329091523,-610.99,0.0001178,2]
[18283,1714329091541,-500.0,0.0001178,2]
[18284,1714329091551,-500.0,0.0001178,2]
[18285,1714329091561,-1635.67,0.0001178,2]
[18286,1714329091571,-1112.39,0.0001178,2]
[18287,1714329091581,-2094.6,0.0001178,2]
[18288,1714329091590,-919.02,0.0001178,2]
[18289,1714329091600,-500.0,0.0001178,2]
[18291,1714329091619,-3255.5,0.0001178,2]
[18292,1714329091628,-500.0,0.0001178,2]
[18293,1714329091637,-500.0,0.0001178,2]
[18294,1714329091646,-500.0,0.0001178,2]
[18295,1714329091656,-500.0,0.0001178,2]
[18296,1714329091666,-500.0,0.0001178,2]
[18297,1714329091680,-601.67,0.0001178,2]
[18299,1714329091699,-1291.27,0.0001178,2]
[18300,1714329091708,-500.0,0.0001178,2]
[18301,1714329091718,-549.5,0.0001178,2]
[18302,1714329091728,-500.0,0.0001178,2]
[18303,1714329091738,-648.58,0.0001178,2]
[18305,1714329091757,-5225.05,0.0001178,2]
[18306,1714329091766,-500.0,0.0001178,2]
[18307,1714329091780,-669.27,0.0001178,2]
[18309,1714329091800,-513.94,0.0001178,2]
[18310,1714329091811,-3651.69,0.0001178,2]
[18311,1714329091822,-510.79,0.0001178,2]
[18312,1714329091832,-510.63874413,0.0001178,2]
[18313,1714329091842,-597.58701199,0.0001178,2]
[18314,1714329091852,-500.0,0.0001178,2]
[18315,1714329091863,-500.0,0.0001178,2]
[18316,1714329091874,-6369.57,0.0001178,2]
[18317,1714329091886,-504.46470642,0.0001178,2]
[18318,1714329091897,-500.0,0.0001178,2]
[18319,1714329091910,-1274.36,0.0001178,2]
[18320,1714329091920,-943.47,0.0001178,2]
[18321,1714329091932,-517.3,0.0001178,2]
[18322,1714329091942,-504.22086124,0.0001178,2]
[18323,1714329091952,-1866.42,0.0001178,2]
[18324,1714329091961,-3099.3,0.0001178,2]
[18325,1714329091972,-500.0,0.0001178,2]
[18326,1714329091982,-500.0,0.0001178,2]
[18327,1714329091993,-2707.94,0.0001178,2]
[18328,1714329092005,-821.68,0.0001178,2]
[18329,1714329092016,-1460.67,0.0001178,2]
[18330,1714329092026,-1115.92,0.0001178,2]
[18331,1714329092037,-2477.27,0.0001178,2]
[18332,1714329092049,-529.06,0.0001178,2]
[18333,1714329092060,-540.62,0.0001178,2]
[18334,1714329092071,-500.0,0.0001178,2]
[18335,1714329092081,-677.53,0.0001178,2]
[18336,1714329092092,-500.0,0.0001178,2]
[18337,1714329092102,-1835.72,0.0001178,2]
[18338,1714329092112,-658.86,0.0001178,2]
[18339,1714329092123,-500.0,0.0001178,2]
[18340,1714329092133,-540.14,0.0001178,2]
[18341,1714329092144,-560.3,0.0001178,2]
[18342,1714329092155,-1100.33,0.0001178,2]
[18343,1714329092166,-301.3,0.0001178,2]
[18344,1714329092177,-300.0,0.000119,4]
[18345,1714329092188,-834.4473,0.00011954,2]
[18346,1714329092199,-538.9388,0.00011954,2]
[18347,1714329092209,-500.0,0.00011954,2]
[18348,1714329092218,-245000.0,0.00011954,2]
[18349,1714329092228,-9313.617,0.00011954,2]
[18350,1714329092238,-1241.2305,0.00011954,2]
[18351,1714329092248,-533.34,0.00011954,2]
[18352,1714329092257,-22283.7592,0.00011954,2]
[18353,1714329092267,-318.321282,0.00011954,2]
[18354,1714329092277,-318.321282,0.00011954,2]
[18355,1714329092287,-1607.959395,0.00011954,2]
[18356,1714329092296,-1607.959395,0.00011954,2]
[18357,1714329092306,-5638.7907756,0.00012,2]
[18358,1714329092316,-15013.42843875,0.00012,2]
[18359,1714329092325,-5000.0,0.00012,2]
[18361,1714329092345,-166.01,0.00012033,2]
[18363,1714329092365,-3500.0,0.0001204,2]
[18364,1714329092375,-500.0,0.00012054,2]
[18365,1714329092385,-665.06,0.00012054,2]
[18366,1714329092395,-797.43,0.00012054,2]
[18367,1714329092404,-503.3166131,0.00012054,2]
[18369,1714329092423,-500.0,0.00012054,2]
[18370,1714329092433,-500.0,0.00012054,2]
[18371,1714329092443,-500.0,0.00012054,2]
[18372,1714329092454,-500.0,0.00012054,2]
[18373,1714329092463,-500.0,0.00012054,2]
[18374,1714329092473,-500.0,0.00012054,2]
[18375,1714329092483,-500.0,0.00012054,2]
[18376,1714329092493,-169.59162527,0.00012054,2]
[18377,1714329092502,-631.1,0.00012054,2]
[18378,1714329092512,-500.0,0.00012054,2]
[18379,1714329092521,-500.0,0.00012054,2]
[18381,1714329092540,-500.0,0.00012054,2]
[18382,1714329092549,-500.0,0.00012054,2]
[18383,1714329092559,-611.53,0.00012054,2]
[18384,1714329092568,-500.0,0.00012054,2]
[18385,1714329092578,-500.0,0.00012054,2]
[18386,1714329092694,-587.95,0.00012054,2]
[18387,1714329092704,-500.0,0.00012054,2]
[18388,1714329092713,-500.0,0.00012054,2]
[18389,1714329092722,-896.51,0.00012054,2]
[18390,1714329092731,-500.0,0.00012054,2]
[18391,1714329092740,-512.35715823,0.00012054,2]
[18392,1714329092752,-500.0,0.00012054,2]
[18393,1714329092762,-500.0,0.00012054,2]
[18395,1714329092780,-500.0,0.00012054,2]
[18396,1714329092789,-500.0,0.00012054,2]
[18397,1714329092798,-500.0,0.00012054,2]
[18398,1714329092807,-522.25,0.00012054,2]
[18399,1714329092815,-500.0,0.00012054,2]
[18400,1714329092824,-500.0,0.00012054,2]
[18401,1714329092833,-560.42,0.00012054,2]
[18402,1714329092843,-626.23,0.00012054,2]
[18403,1714329092852,-1310.66,0.00012054,2]
[18404,1714329092862,-500.0,0.00012054,2]
[18405,1714329092871,-382.95837532,0.00012054,2]
[18406,1714329092880,-500.0,0.00012054,2]
[18407,1714329092890,-500.0,0.00012054,2]
[18408,1714329092899,-1056.37,0.00012054,2]
[18409,1714329092907,-500.0,0.00012054,2]
[18411,1714329092925,-501.7,0.00012054,2]
[18413,1714329092943,-676.09,0.00012054,2]
[18414,1714329092952,-500.0,0.00012054,2]
[18415,1714329092961,-500.0,0.00012054,2]
[18416,1714329092970,-500.0,0.00012054,2]
[18417,1714329092979,-500.0,0.00012054,2]
[18418,1714329092988,-500.0,0.00012054,2]
[18419,1714329092997,-500.0,0.00012054,2]
[18421,1714329093015,-500.0,0.00012054,2]
[18423,1714329093033,-500.0,0.00012054,2]
[18425,1714329093051,-500.0,0.00012054,2]
[18427,1714329093069,-500.0,0.00012054,2]
[18428,1714329093078,-549.6,0.00012054,2]
[18429,1714329093087,-500.0,0.00012054,2]
[18430,1714329093096,-506.67214817,0.00012054,2]
[18431,1714329093106,-527.24,0.00012054,2]
[18432,1714329093114,-500.0,0.00012054,2]
[18433,1714329093124,-500.0,0.00012054,2]
[18434,1714329093133,-500.0,0.00012054,2]
[18435,1714329093142,-500.0,0.00012054,2]
[18436,1714329093150,-500.0,0.00012054,2]
[18437,1714329093159,-500.0,0.00012054,2]
[18438,1714329093169,-500.0,0.00012054,2]